[Event "ESP-chT Honor Division 2022"]
[Site "Linares"]
[Date "2022.09.21"]
[Round "5.12"]
[White "Ubilava, Elizbar"]
[Black "Batsiashvili, Nino"]
[Result "1-0"]
[ECO "D37"]
[WhiteElo "2434"]
[BlackElo "2477"]
[Annotator "TA"]
[PlyCount "153"]
[EventDate "2022.09.17"]
[EventType "team-tourn"]
[EventCountry "ESP"]
[SourceTitle "playchess.com"]
[Source "ChessBase"]
[SourceQuality "1"]
[TimeControl "5400+30"]

{[%evp 9,153,16,17,17,34,11,14,12,16,19,10,3,1,0,39,37,112,80,123,56,95,75,193,187,174,163,186,179,172,152,286,145,143,149,141,151,212,185,291,174,183,147,162,119,119,114,107,123,118,118,123,123,123,123,116,106,114,114,114,114,114,114,116,114,114,114,118,114,114,115,116,118,122,122,122,60,60,59,60,60,60,60,93,33,33,24,34,35,53,35,147,108,108,108,745,714,714,706,699,694,968,694,687,383,368,0,687,679,672,591,29953,29961,29958,1800,29963,29963,29952,11026,29980,29981,29979,29980,29985,29986,29985,29986,29987,29988,29988,29989,29989,29990,29992,29993,29993,29994,29994,29995,29995,29995,29995,29996,29996,29997,29998,29999]} 1. d4 {[%emt 0:00:22]} d5 {[%emt 0:00:04]} 2. c4 {[%emt 0:00:17]} e6 {[%emt 0:00:08]} 3. Nc3 {[%emt 0:00:19]} Nf6 {[%emt 0:00:07]} 4. Nf3 {[%emt 0:00:30]} a6 {[%emt 0:00:34]} 5. cxd5 {[%emt 0:00:54]} exd5 {[%emt 0:00:06]} 6. Bg5 {[%emt 0:00:38] D37: Queen's Gambit Declined: 5 Bf4.} Be6 {[%emt 0:00:26]} 7. Bxf6 {[%emt 0:02:00]} Qxf6 {[%emt 0:00:08]} 8. Qb3 {[%emt 0:00:14][%csl LRb7,LRd5] The position is equal.} Ra7 {[%emt 0:00:23]} 9. a3 {[%emt 0:00:46]} (9. Nxd5 Qd8 10. e4 c6 $16) 9... Qd8 {[%emt 0:00:13]} 10. h4 {[%emt 0:00:45]} Be7 {[%emt 0:02:56] Inhibits Ng5.} 11. Qc2 {[%emt 0:01:09][%cal Of3g5] [#]} Nc6 $146 {[%emt 0:06:55]} ({Predecessor:} 11... Nd7 12. e4 dxe4 13. Nxe4 Nf6 14. Neg5 Bd5 15. Ne5 c6 16. Bc4 O-O 17. O-O-O Bxc4 18. Nxc4 {1-0 (51) Gelfand,B (2675)-Braun,A (2609) Krasnaya Polyana 2021}) 12. e4 {[%emt 0:02:11]} Kf8 {[%emt 0:12:18]} ({Black should try} 12... O-O $14) 13. Rd1 {[%emt 0:11:09]} (13. Nxd5 {looks sharper.} Bxd5 14. exd5 Qxd5 15. Bc4) 13... Ra8 {[%emt 0:06:19]} 14. Be2 {[%emt 0:09:11]} ({White should play} 14. exd5 $16 Bxd5 15. Nxd5 Qxd5 16. Bc4 Qa5+ 17. Rd2) 14... h5 {[%emt 0:06:28]} 15. O-O {[%emt 0:04:39]} Rh6 {[%emt 0:04:43]} (15... dxe4 $16 16. Qxe4 Bb3) 16. exd5 $18 {[%emt 0:11:58]} (16. Nxd5 Bxd5 17. exd5 Qxd5) 16... Bxd5 {[%emt 0:00:09]} 17. Nxd5 {[%emt 0:00:06]} Qxd5 {[%emt 0:00:08]} 18. Bc4 {[%emt 0:00:10]} Qd6 {[%emt 0:03:18]} 19. Ng5 {[%emt 0:06:10]} Qg6 {[%emt 0:15:14]} (19... Bxg5 $16 {was necessary.} 20. hxg5 Rh8) 20. Bd3 {[%emt 0:11:01]} ({Weaker is} 20. Qxg6 Rxg6 21. f4 (21. Nxf7 Bf6 $14) 21... Nxd4 $16) (20. Qc1 $18) 20... Qd6 $16 {[%emt 0:07:46]} 21. Qb3 {[%emt 0:02:06][%csl Gg5,LRb7,LRf7][%cal Rb3f7]} Nd8 {[%emt 0:05:08]} 22. d5 {[%emt 0:02:15]} Qd7 {[%emt 0:03:44]} (22... b5 $16 23. Bb1 Nb7) 23. Qc2 {[%emt 0:04:45]} c6 {[%emt 0:12:54]} (23... g6 $142 24. Rfe1 Rc8) 24. Be4 {[%emt 0:04:07]} (24. Bf5 $142 Qd6 25. dxc6 Qxc6 26. Qe2) 24... Rd6 {[%emt 0:07:58][%cal Rc6d5]} 25. dxc6 {[%emt 0:05:30]} Nxc6 {[%emt 0:01:43]} 26. Bxc6 {[%emt 0:03:40]} Qxc6 {[%emt 0:00:45]} 27. Qh7 {[%emt 0:00:16][%cal Rh7h8]} Rh6 {[%emt 0:00:16]} 28. Qf5 {[%emt 0:00:07][%csl Gg5][%cal Rf5f7]} Bxg5 {[%emt 0:02:03]} 29. hxg5 {[%emt 0:00:36]} ({Don't do} 29. Qxg5 Kg8 $14) 29... Rg6 {[%emt 0:00:33]} 30. Rd7 {[%emt 0:02:14][%csl Gd7][%cal Rf5f7]} Qe6 {[%emt 0:00:22] [#]} 31. Qxe6 {[%emt 0:00:39] White has more active pieces. The black rooks are badly placed.} Rxe6 {[%emt 0:00:27]} 32. Rxb7 {[%emt 0:01:42]} Re7 {[%emt 0:00:48]} 33. Rxe7 {[%emt 0:02:02]} Kxe7 {[%emt 0:00:01][%mdl 4096] Endgame KR-KR} 34. Re1+ {[%emt 0:00:14]} Kd6 {[%emt 0:00:28]} 35. Re4 {[%emt 0:00:41]} Rb8 {[%emt 0:00:17]} 36. b4 {[%emt 0:01:03]} Rb5 {[%emt 0:00:36]} 37. f4 {[%emt 0:01:04]} Rd5 {[%emt 0:00:31]} 38. Kf2 {[%emt 0:01:23]} Rd2+ {[%emt 0:00:21]} 39. Re2 {[%emt 0:00:17]} Rd3 {[%emt 0:00:21] [#]} 40. Re3 $1 {[%emt 0:00:13]} Rd2+ {[%emt 0:00:06]} 41. Kf3 {[%emt 0:00:10]} h4 {[%emt 0:00:39]} 42. f5 {[%emt 0:00:45]} (42. Rb3 $16) 42... Ra2 $1 $14 {[%emt 0:00:07]} 43. Rc3 {[%emt 0:04:29]} Kd7 {[%emt 0:00:25]} 44. Kg4 {[%emt 0:00:44]} Rxg2+ {[%emt 0:00:20]} 45. Kxh4 {[%emt 0:00:07]} Ra2 {[%emt 0:00:34]} 46. Kg4 {[%emt 0:00:48]} (46. Rd3+ $16 Ke7 47. Kg4) 46... Ra1 {[%emt 0:00:46]} 47. Kf4 {[%emt 0:00:50]} Rf1+ {[%emt 0:00:15]} 48. Rf3 {[%emt 0:01:24]} Ra1 {[%emt 0:00:24]} 49. Rd3+ {[%emt 0:00:59]} Ke7 {[%emt 0:00:13]} (49... Kc6 $14) 50. Ke5 {[%emt 0:03:12]} Re1+ {[%emt 0:00:37]} 51. Kd5 {[%emt 0:00:09]} Rg1 $2 {[%emt 0:00:15][%mdl 8192]} (51... Kd7 $16 52. a4 Rc1) 52. Kc6 {[%emt 0:00:14]} Rxg5 {[%emt 0:00:11]} 53. Kb6 {[%emt 0:00:12]} Rxf5 {[%emt 0:00:40]} 54. Kxa6 {[%emt 0:00:09] b5 is the strong threat.} g5 {[%emt 0:00:26]} 55. Rg3 {[%emt 0:00:50] Black must now prevent b5.} Rf6+ {[%emt 0:02:22]} 56. Ka7 {[%emt 0:00:10] And now b5 would win.} Rf5 {[%emt 0:00:21]} 57. Ka6 $2 {[%emt 0:00:24]} (57. Kb6) 57... Rf6+ $1 $18 {[%emt 0:00:00]} 58. Ka5 {[%emt 0:00:15]} Rg6 {[%emt 0:00:13]} 59. b5 {[%emt 0:00:14] aiming for b6.} f5 {[%emt 0:00:13]} 60. b6 {[%emt 0:00:28]} f4 {[%emt 0:00:43]} 61. b7 {[%emt 0:01:58]} (61. Rc3 $142 Rg8 62. b7 Rb8 63. Kb6 Rd8 64. Rc8 Rd1 65. b8=Q Rb1+ 66. Kc5 Rxb8 67. Rxb8) 61... Rg8 {[%emt 0:00:06]} 62. Rc3 {[%emt 0:00:35]} (62. Rb3 g4 63. Rc3 Rb8 $11) 62... Rb8 {[%emt 0:00:21]} 63. Kb6 {[%emt 0:00:06] White threatens Rc7+ and mate.} Kf6 {[%emt 0:00:34]} 64. a4 {[%emt 0:01:28] White mates.} g4 {[%emt 0:00:12]} 65. a5 {[%emt 0:00:14]} g3 {[%emt 0:00:24]} 66. a6 {[%emt 0:00:20]} g2 {[%emt 0:02:17]} 67. Rc1 {[%emt 0:00:06]} f3 {[%emt 0:00:41]} 68. a7 {[%emt 0:00:08]} Rxb7+ {[%emt 0:00:04]} 69. Kxb7 {[%emt 0:00:05] KR-KPP} f2 {[%emt 0:00:02]} 70. a8=Q {[%emt 0:00:11]} g1=Q {[%emt 0:00:06]} 71. Qf8+ {[%emt 0:00:55]} Ke6 {[%emt 0:00:07]} 72. Rc6+ {[%emt 0:00:56]} Ke5 {[%emt 0:00:07]} 73. Qf6+ {[%emt 0:00:18]} Ke4 {[%emt 0:00:19]} 74. Re6+ {[%emt 0:00:12]} Kd3 {[%emt 0:00:37]} 75. Qf3+ {[%emt 0:00:24]} Kd4 {[%emt 0:00:12]} 76. Qe3+ {[%emt 0:00:15]} Kc4 {[%emt 0:00:11]} 77. Re4+ {[%emt 0:00:14] Weighted Error Value: White=0.37/Black=0.33} 1-0

[Event "ESP-chT Honor Division 2022"]
[Site "Linares"]
[Date "2022.09.21"]
[Round "5.13"]
[White "Van Foreest, Jorden"]
[Black "Eljanov, Pavel"]
[Result "1/2-1/2"]
[ECO "D02"]
[WhiteElo "2691"]
[BlackElo "2695"]
[Annotator "TA"]
[PlyCount "145"]
[EventDate "2022.09.17"]
[EventType "team-tourn"]
[EventCountry "ESP"]
[SourceTitle "playchess.com"]
[Source "ChessBase"]
[SourceQuality "1"]
[TimeControl "5400+30"]

{[%evp 11,145,30,25,26,29,10,20,0,0,4,12,0,0,-4,10,0,15,-16,-18,-15,-25,-28,-22,-33,-30,-28,-36,-24,-15,-19,-10,-56,0,0,0,0,0,0,0,0,0,0,0,0,0,0,0,0,0,0,0,0,0,0,0,0,0,0,0,0,0,0,0,0,0,0,0,0,0,0,0,0,0,0,0,0,0,0,0,0,0,0,0,0,0,0,0,0,0,0,0,0,0,0,0,0,0,0,0,0,0,0,0,0,0,0,0,0,0,0,0,0,0,0,0,0,0,0,0,0,0,0,0,0,0,0,0,0,0,0,0,0,0,0,0,0]} 1. d4 {[%emt 0:00:37]} Nf6 {[%emt 0:00:33]} 2. Nf3 {[%emt 0:00:08]} d5 {[%emt 0:00:46]} 3. Bf4 {[%emt 0:00:06]} c5 {[%emt 0:01:28]} 4. e3 {[%emt 0:00:09]} Nc6 {[%emt 0:00:47]} 5. Nbd2 {[%emt 0:00:08]} Bg4 {[%emt 0:00:23][%cal Bc8g4,Bg4h5,Bh5g6][%mdl 32]} 6. c3 {[%emt 0:01:31]} e6 {[%emt 0:00:28]} 7. Qb3 $1 {[%emt 0:01:25] 7.Qb3 scores better than 7.Qa4. D02: 1 d4 d5 2 Nf3 sidelines, including 2...Nf6 3 g3 and 2...Nf6 3 Bf4.} Qc8 {[%emt 0:00:42]} 8. h3 {[%emt 0:00:34]} Bh5 {[%emt 0:00:51]} 9. Be2 {[%emt 0:00:57]} Be7 {[%emt 0:01:11]} 10. dxc5 {[%emt 0:01:28]} O-O {[%emt 0:06:43] [#]} 11. g4 $146 {[%emt 0:00:10]} ({Predecessor:} 11. Qa3 a5 12. Bd6 Bxd6 13. cxd6 Rd8 14. O-O Ne4 15. g4 Bg6 16. Nxe4 Bxe4 17. Nd2 {½-½ (34) Karavade,E (2339)-Kashlinskaya,A (2505) Chennai 2022}) 11... Bg6 {[%emt 0:00:07]} 12. h4 {[%emt 0:00:07]} Ne4 {[%emt 0:03:04]} (12... Bxc5 13. h5 Be4 14. g5 Bxf3 15. Bxf3 $14) 13. Nxe4 {[%emt 0:06:31]} Bxe4 {[%emt 0:00:28]} 14. Rg1 {[%emt 0:00:48]} (14. Rh3 $5 {[%cal Rf3d2]}) 14... Na5 $1 {[%emt 0:07:30]} (14... Bxc5 15. Nd2) 15. Qa4 {[%emt 0:11:10]} Bxf3 {[%emt 0:02:47]} ({Resist} 15... Qxc5 16. Nd2 $16) 16. Bxf3 {[%emt 0:00:21]} Qxc5 {[%emt 0:00:07]} 17. Be2 {[%emt 0:15:47]} Nc4 {[%emt 0:07:29]} ({Reject} 17... Bxh4 18. g5 $11) 18. Bxc4 {[%emt 0:01:02]} dxc4 {[%emt 0:00:09]} 19. O-O-O {[%emt 0:00:06]} b5 {[%emt 0:09:03]} ({Don't do} 19... Bxh4 20. Bd6 Qb6 21. Bxf8 Bxf2 22. Rgf1 Bxe3+ 23. Kb1 Rxf8 24. Qxc4 $14) 20. Qa6 {[%emt 0:03:54]} Rad8 {[%emt 0:14:55] Against Bd6} 21. Bg3 {[%emt 0:02:16]} (21. h5 $11 {deserves consideration.}) 21... b4 {[%emt 0:07:50]} (21... Rd3 $1 $15) 22. cxb4 $11 {[%emt 0:04:34] The position is equal.} Qxb4 {[%emt 0:00:32]} 23. Rxd8 $1 {[%emt 0:00:44]} Rxd8 {[%emt 0:00:08]} 24. Rd1 {[%emt 0:00:03] Inhibits Qd2+.} Rxd1+ {[%emt 0:04:23]} 25. Kxd1 {[%emt 0:00:06][%mdl 4096] Endgame KQB-KQB} h6 {[%emt 0:05:31]} 26. Qxa7 {[%emt 0:04:05]} Kh7 {[%emt 0:08:09][%cal Ob4b2]} 27. Qd4 {[%emt 0:04:44][%cal Ob2b3] And now b3! would win.} Bf6 {[%emt 0:00:13]} 28. Qe4+ {[%emt 0:06:36]} g6 {[%emt 0:00:15]} 29. Be5 {[%emt 0:05:03]} Bxe5 {[%emt 0:01:37]} 30. Qxe5 {[%emt 0:00:04] KQ-KQ} Qa4+ {[%emt 0:00:05]} 31. Kd2 {[%emt 0:00:29]} Qxa2 {[%emt 0:00:20]} 32. h5 {[%emt 0:00:47]} Qb1 {[%emt 0:04:53]} 33. Kc3 {[%emt 0:02:37]} Qd3+ {[%emt 0:05:33]} 34. Kb4 {[%emt 0:00:10]} gxh5 {[%emt 0:01:20]} 35. gxh5 {[%emt 0:00:15]} Qe2 {[%emt 0:00:18]} 36. f4 {[%emt 0:01:32]} Kg8 {[%emt 0:00:30]} 37. Kc5 {[%emt 0:00:34]} Qd3 {[%emt 0:00:36]} 38. Kc6 {[%emt 0:03:06]} Qd2 {[%emt 0:01:31]} 39. Kb5 {[%emt 0:02:19]} Qc2 {[%emt 0:00:29]} 40. Kb6 {[%emt 0:00:18]} Qd1 {[%emt 0:00:43]} 41. Kc7 {[%emt 0:00:35]} Qd2 {[%emt 0:00:22]} 42. e4 {[%emt 0:01:05]} Qd1 {[%emt 0:00:47]} 43. Kc6 {[%emt 0:01:35]} Qd3 {[%emt 0:01:46]} 44. Kc5 {[%emt 0:00:28]} Qe2 {[%emt 0:02:44]} 45. Kb4 {[%emt 0:01:15]} Kh7 {[%emt 0:00:23]} 46. Ka5 {[%emt 0:02:12]} Kg8 {[%emt 0:00:21]} 47. Kb6 {[%emt 0:00:05]} Qd1 {[%emt 0:00:20]} 48. Kc7 {[%emt 0:00:11]} Kh7 {[%emt 0:01:22]} 49. Kc6 {[%emt 0:03:35]} Kg8 {[%emt 0:00:18]} 50. Kc5 {[%emt 0:01:10]} Qe2 {[%emt 0:00:10]} 51. Kd6 {[%emt 0:01:45]} Qd2+ {[%emt 0:00:07]} 52. Ke7 {[%emt 0:00:05] [#] Qb5 is the strong threat.} Qb4+ {[%emt 0:00:11]} 53. Ke8 {[%emt 0:00:38]} Qa4+ {[%emt 0:00:08]} 54. Kd8 {[%emt 0:00:05]} Qa8+ {[%emt 0:01:46]} 55. Kc7 {[%emt 0:00:18]} Qa7+ {[%emt 0:00:05]} 56. Kc6 {[%emt 0:00:04]} Qf2 {[%emt 0:00:36]} 57. Qc3 {[%emt 0:03:25]} Qe2 {[%emt 0:01:26]} 58. Qd4 {[%emt 0:00:04]} Qxh5 {[%emt 0:00:21]} 59. Qxc4 {[%emt 0:00:04]} Qg6 {[%emt 0:00:07]} 60. Kc7 {[%emt 0:01:08] aiming for b4.} h5 {[%emt 0:01:25]} 61. b4 {[%emt 0:08:21] [#] Hoping for b5.} h4 {[%emt 0:00:07]} 62. b5 {[%emt 0:00:02] Strongly threatening b6.} h3 {[%emt 0:00:27]} 63. b6 {[%emt 0:00:03] Black must now prevent b7.} h2 {[%emt 0:00:46]} 64. b7 {[%emt 0:00:03]} h1=Q {[%emt 0:00:15]} 65. b8=Q+ {[%emt 0:00:05]} Kh7 {[%emt 0:00:26]} 66. Qc3 {[%emt 0:00:39][%csl Gb8][%cal Rc3h8] Inhibits Qf6.} f6 {[%emt 0:01:16]} 67. Qd8 {[%emt 0:01:20]} Qf7+ {[%emt 0:00:46]} (67... Qhxe4 68. Qh3+ Qh6 69. Qe7+ Kg6 70. Qg4+) 68. Qd7 {[%emt 0:00:59] Really sharp!} Qxd7+ {[%emt 0:00:26]} 69. Kxd7 {[%emt 0:00:02] Threatens to win with Qc6.} Qxe4 {[%emt 0:00:07]} 70. Qxf6 {[%emt 0:00:07]} Qb7+ {[%emt 0:00:45]} 71. Ke8 {[%emt 0:00:17] White threatens Qe7+ and mate.} Qc8+ {[%emt 0:00:36]} 72. Kf7 {[%emt 0:00:17][%cal Rf6h4]} Qc7+ {[%emt 0:00:15]} 73. Qe7 {[%emt 0:00:58] Weighted Error Value: White=0.04 (flawless) /Black=0.02 (flawless)} 1/2-1/2

[Event "ESP-chT Honor Division 2022"]
[Site "Linares"]
[Date "2022.09.21"]
[Round "5.14"]
[White "Jones, Gawain C B"]
[Black "Nihal Sarin"]
[Result "1/2-1/2"]
[ECO "B10"]
[WhiteElo "2623"]
[BlackElo "2677"]
[Annotator "TA"]
[PlyCount "61"]
[EventDate "2022.09.17"]
[EventType "team-tourn"]
[EventCountry "ESP"]
[SourceTitle "playchess.com"]
[Source "ChessBase"]
[SourceQuality "1"]
[TimeControl "5400+30"]

{[%evp 9,61,0,1,-8,12,11,23,11,27,27,34,19,33,0,0,0,7,0,0,0,0,-10,0,0,0,0,0,0,14,0,0,0,0,0,0,0,7,0,0,-42,-41,-72,-39,-41,-49,-49,-49,-49,-49,-49,-49,-61,-53,-36]} 1. e4 {[%emt 0:00:02]} c6 {[%emt 0:02:07]} 2. Nf3 {[%emt 0:00:24][%cal Bg1f3,Bf3e5,Be5d3][%mdl 32]} d5 {[%emt 0:00:05]} 3. d3 {[%emt 0:00:04]} dxe4 {[%emt 0:01:07]} 4. dxe4 {[%emt 0:00:07]} Qxd1+ {[%emt 0:00:04]} 5. Kxd1 {[%emt 0:00:05]} Nf6 {[%emt 0:00:03]} 6. Nbd2 {[%emt 0:00:20] B10: Caro-Kann: 2 d3 and 2 c4.} g6 $1 {[%emt 0:00:24] 6...g6 is better than 6...Bg4.} 7. Ne5 {[%emt 0:00:19]} Nbd7 {[%emt 0:13:15]} 8. Nd3 {[%emt 0:02:57] White has an edge.} Bh6 {[%emt 0:15:26]} 9. f3 {[%emt 0:02:12] [#]} b6 $146 {[%emt 0:00:05]} ({Predecessor:} 9... O-O 10. c3 b6 11. Kc2 Ba6 12. a4 Rfd8 13. Nb4 Bxf1 14. Rxf1 Rac8 15. Nd3 Nf8 {1-0 (43) Chigaev,M (2631)-Samunenkov,I (2371) Chess.com INT 2022}) 10. g4 {[%emt 0:15:02]} Ba6 {[%emt 0:03:07]} 11. a4 {[%emt 0:09:02]} (11. h4 $5 {[%cal Rg4g5]}) 11... O-O-O {[%emt 0:21:27]} 12. a5 {[%emt 0:02:53] Threatens to win with axb6.} Bxd3 {[%emt 0:00:13]} 13. cxd3 {[%emt 0:11:22]} Ne5 {[%emt 0:26:01]} 14. axb6 {[%emt 0:14:55]} axb6 {[%emt 0:00:08]} 15. Ra7 {[%emt 0:00:04][%cal Od2c4]} Rhe8 {[%emt 0:00:43]} 16. Nc4 {[%emt 0:03:58]} Nxc4 {[%emt 0:00:37]} 17. Bxh6 {[%emt 0:00:23] Dancing on a razor blade.} Kb8 {[%emt 0:00:02]} 18. Ra2 {[%emt 0:01:57]} c5 {[%emt 0:00:40]} 19. Ke2 {[%emt 0:13:26]} Na5 {[%emt 0:00:46]} 20. Bg2 {[%emt 0:01:07]} Nc6 {[%emt 0:06:43]} 21. Rha1 {[%emt 0:00:26]} Kc7 {[%emt 0:00:28]} 22. Be3 {[%emt 0:06:21]} e5 {[%emt 0:05:52]} 23. Ra6 {[%emt 0:02:38]} Nd7 {[%emt 0:00:40][%cal Bf6d7,Bd7f8,Bf8e6,Be6d4][%mdl 32]} 24. h4 {[%emt 0:00:52]} Nf8 {[%emt 0:00:58]} 25. f4 {[%emt 0:03:15]} Ne6 {[%emt 0:00:03]} 26. f5 {[%emt 0:03:34] Black is slightly better.} Ned4+ {[%emt 0:00:03]} 27. Bxd4 {[%emt 0:00:40]} Nxd4+ {[%emt 0:01:02]} 28. Kf2 {[%emt 0:00:04] [#] Strongly threatening Ra7+.} Nc6 {[%emt 0:00:03] Against Ra7+} 29. Ke3 {[%emt 0:02:49]} Kb7 {[%emt 0:01:05]} 30. R6a3 {[%emt 0:00:13]} Rd6 {[%emt 0:00:47]} 31. Rf1 {[%emt 0:01:07] Weighted Error Value: White=0.06 (flawless) /Black=0.04 (flawless)} 1/2-1/2

[Event "ESP-chT Honor Division 2022"]
[Site "Linares"]
[Date "2022.09.21"]
[Round "5.15"]
[White "Hakobyan, Aram"]
[Black "Del Rio De Angelis, Salvador G."]
[Result "1-0"]
[ECO "B28"]
[WhiteElo "2611"]
[BlackElo "2456"]
[Annotator "TA"]
[PlyCount "55"]
[EventDate "2022.09.17"]
[EventType "team-tourn"]
[EventCountry "ESP"]
[SourceTitle "playchess.com"]
[Source "ChessBase"]
[SourceQuality "1"]
[TimeControl "5400+30"]

{[%evp 9,55,29,39,23,50,49,49,49,51,50,47,49,52,46,47,41,46,47,47,42,52,43,57,55,48,45,66,31,37,28,44,29,23,22,114,113,112,115,107,112,123,102,457,452,1743,1680,29994,29995]} 1. e4 {[%emt 0:02:34]} c5 {[%emt 0:00:22]} 2. Nf3 {[%emt 0:00:19]} a6 {[%emt 0:00:10]} 3. g3 {[%emt 0:00:16]} Nc6 {[%emt 0:04:51]} 4. Bg2 {[%emt 0:00:19]} d6 {[%emt 0:00:13]} 5. d4 {[%emt 0:03:25]} cxd4 {[%emt 0:05:47]} 6. Nxd4 {[%emt 0:00:14] B28: Sicilian: 2 Nf3 a6 (O'Kelly Variation).} e6 {[%emt 0:01:45]} 7. Nxc6 $5 {[%emt 0:04:27][%mdl 4] A promising side line.} bxc6 {[%emt 0:00:07]} 8. O-O {[%emt 0:00:06] White is slightly better.} e5 {[%emt 0:03:43]} 9. c4 {[%emt 0:00:09]} Nf6 {[%emt 0:01:30]} 10. Nc3 {[%emt 0:01:44]} Be7 {[%emt 0:01:37]} 11. h3 {[%emt 0:10:58]} O-O {[%emt 0:04:55] [#]} 12. Be3 $146 {[%emt 0:00:08]} ({Predecessor:} 12. Kh2 Nd7 13. Na4 Qc7 14. b3 Rd8 15. Be3 c5 16. Nc3 Bb7 17. h4 Nf8 18. Bh3 {0-1 (57) Ondracek,O (2130)-Butkiewicz,L (2436) Pardubice 2015}) 12... Rb8 {[%emt 0:11:01]} 13. b3 {[%emt 0:01:29]} Nd7 {[%emt 0:00:35]} 14. Qd2 {[%emt 0:02:47]} Qc7 {[%emt 0:06:41]} 15. Rad1 {[%emt 0:01:12]} Re8 {[%emt 0:04:28]} 16. f4 {[%emt 0:05:05]} exf4 {[%emt 0:00:37]} 17. gxf4 {[%emt 0:00:13]} Bf8 {[%emt 0:00:12]} 18. Ne2 {[%emt 0:14:08][%cal Bc3e2,Be2g3,Bg3h5][%mdl 32]} Nf6 {[%emt 0:05:36]} 19. Ng3 {[%emt 0:01:13]} a5 {[%emt 0:12:19][%cal Oa5a4]} 20. Bd4 {[%emt 0:12:09]} Nd7 {[%emt 0:00:17]} 21. Nh5 $36 {[%emt 0:00:48][%mdl 2048] White fights for an advantage.} a4 {[%emt 0:08:08] [#]} (21... f6 $11) 22. Qc3 $1 $16 {[%emt 0:08:48]} ({Resist} 22. bxa4 $6 f6 $14) 22... f6 {[%emt 0:01:40]} 23. Qg3 {[%emt 0:04:17] And now Bxf6 would win.} ({But not} 23. bxa4 $6 c5 24. Bf2 Bb7 $11) 23... Kh8 {[%emt 0:03:33] [#]} 24. e5 $1 {[%emt 0:01:04] White has more active pieces.} ({Weaker is} 24. bxa4 Ba6 25. Rf2 Bxc4 $17) 24... dxe5 {[%emt 0:13:37]} 25. fxe5 {[%emt 0:00:05][%cal Og2c6] Bxc6! is the strong threat.} f5 $2 {[%emt 0:00:06][%mdl 8192]} (25... Re6 $16 {is more resistant.}) 26. Rxf5 $18 {[%emt 0:02:18][%cal Bf1f5,Bf5f7,Bf7g7][%mdl 32] Strongly threatening Rf7.} axb3 {[%emt 0:00:18]} (26... Nb6 $142) 27. Rf7 {[%emt 0:03:23][%cal Rf7g7] White threatens Rxg7 and mate.} b2 {[%emt 0:00:39]} 28. Rxg7 {[%emt 0:00:18] Weighted Error Value: White=0.03 (flawless) /Black=0.59} 1-0

[Event "ESP-chT Honor Division 2022"]
[Site "Linares"]
[Date "2022.09.21"]
[Round "5.16"]
[White "Suarez Garcia, Carlos"]
[Black "Arizmendi Martinez, Julen Luis"]
[Result "0-1"]
[ECO "D30"]
[WhiteElo "2455"]
[BlackElo "2488"]
[Annotator "TA"]
[PlyCount "64"]
[EventDate "2022.09.17"]
[EventType "team-tourn"]
[EventCountry "ESP"]
[SourceTitle "playchess.com"]
[Source "ChessBase"]
[SourceQuality "1"]
[TimeControl "5400+30"]

{[%evp 9,64,18,17,11,20,0,0,0,0,0,14,0,14,0,0,0,0,-9,0,-2,0,0,0,0,0,-6,-25,-30,0,-29,-25,-62,-58,-81,-81,-76,-70,-80,-77,-93,-79,-104,-116,-101,7,-253,-258,-483,-291,-484,-474,-998,-993,-1750,-1322,-29990,-29991]} 1. d4 {[%emt 0:00:07]} d5 {[%emt 0:01:48]} 2. c4 {[%emt 0:00:10]} e6 {[%emt 0:00:11]} 3. Nf3 {[%emt 0:00:10]} Nf6 {[%emt 0:00:38]} 4. e3 {[%emt 0:01:01]} a6 {[%emt 0:03:09]} 5. b3 {[%emt 0:02:40]} c5 {[%emt 0:02:26]} 6. cxd5 {[%emt 0:02:04] D30: Queen's Gambit Declined: Systems without Nc3.} exd5 {[%emt 0:03:53]} (6... Nxd5 {seems wilder.} 7. dxc5 Bxc5 8. Bb2 O-O) 7. Be2 {[%emt 0:00:37]} cxd4 {[%emt 0:02:20]} 8. Nxd4 {[%emt 0:01:40] The position is equal.} Bb4+ {[%emt 0:00:13]} 9. Bd2 {[%emt 0:02:40]} Bd6 {[%emt 0:01:13]} 10. O-O {[%emt 0:03:21]} O-O {[%emt 0:01:48]} 11. Nc3 {[%emt 0:05:36]} Nc6 {[%emt 0:11:19]} 12. Nxc6 {[%emt 0:08:45]} bxc6 {[%emt 0:00:13]} 13. Bf3 {[%emt 0:03:10]} Qe7 {[%emt 0:07:26] [#]} 14. g3 $146 {[%emt 0:00:48]} ({Predecessor:} 14. Ne2 Ne4 15. Ng3 Nxd2 16. Qxd2 a5 17. Rac1 Bd7 18. e4 Bxg3 19. hxg3 dxe4 20. Bxe4 Qxe4 21. Qxd7 {½-½ (33) Ali Marandi,C (2524)-Raja,H (2482) Saint Louis 2022}) 14... Bf5 {[%emt 0:05:53]} 15. Na4 {[%emt 0:05:13]} Rac8 {[%emt 0:11:03]} 16. Ba5 {[%emt 0:05:24]} Ne4 {[%emt 0:07:50]} 17. Bg2 {[%emt 0:14:11]} Qe6 {[%emt 0:04:56]} 18. Qe2 {[%emt 0:05:02]} h5 {[%emt 0:02:01][%cal Oh5h4]} 19. Nc3 {[%emt 0:10:38]} ({Avoid the trap} 19. Qxh5 $2 Bg4 20. Qh4 Be7 21. Qxg4 Qxg4 $19) 19... Nf6 {[%emt 0:11:48][%cal Oh5h4]} 20. Rad1 {[%emt 0:10:37]} h4 {[%emt 0:00:45]} 21. Rd4 {[%emt 0:00:51]} hxg3 {[%emt 0:03:50]} 22. hxg3 {[%emt 0:00:02]} Ng4 {[%emt 0:07:31]} 23. Rc1 {[%emt 0:00:08]} Be5 {[%emt 0:01:32]} 24. Ra4 {[%emt 0:00:26]} d4 $1 {[%emt 0:00:53]} 25. Nd1 {[%emt 0:10:28]} Qh6 {[%emt 0:00:45]} 26. Rc5 {[%emt 0:03:19] [#]} Rfe8 {[%emt 0:01:58]} ({Resist} 26... d3 27. Qf3 Qh2+ 28. Kf1 $11) ({Black should play} 26... Qh2+ $1 $17 27. Kf1 {[#]} Nf6 $1 28. Rxe5 Bh3) 27. e4 $2 {[%emt 0:00:43][%mdl 8192] This move loses the game for White.} (27. Kf1 Qd6 28. Rxe5 Qxe5 $19) (27. Rxd4 $11 Bxd4 28. Rxf5) 27... Bd7 $19 {[%emt 0:00:40] aiming for ...Qh2+.} 28. Bd2 $2 {[%emt 0:01:19]} (28. Kf1) 28... Qh2+ {[%emt 0:00:05]} 29. Kf1 {[%emt 0:00:02]} Nf6 {[%emt 0:01:26] And now ...Bh3 would win.} 30. f4 {[%emt 0:01:29]} (30. f3 $142 Bxg3 31. Nf2) 30... Bd6 {[%emt 0:00:47]} 31. Rg5 {[%emt 0:00:42] [#]} Nxe4 $1 {[%emt 0:01:04][%mdl 512]} 32. Bxe4 {[%emt 0:01:44]} (32. Qxe4 Rxe4) 32... Bh3+ {[%emt 0:00:06] Weighted Error Value: White=0.84/Black=0.25 (precise)} 0-1